[Event "Chile-ch Absolute 2018-19"]
[Site "Santiago"]
[Date "2019.02.22"]
[Round "3.1"]
[White "Torres Bravo, Cristobal"]
[Black "Gasic Merino, Franco"]
[Result "1-0"]
[ECO "E71"]
[WhiteElo "2347"]
[BlackElo "2189"]
[Annotator "NA"]
[PlyCount "159"]
[EventDate "2019.02.20"]
[EventType "tourn"]
[EventCountry "CHI"]
[SourceTitle "playchess.com"]
[Source "ChessBase"]
[SourceQuality "1"]
[TimeControl "5400+30"]

1. d4 {[%emt 0:00:00]} Nf6 {[%emt 0:00:00]} 2. c4 {[%emt 0:00:36]} g6 {[%emt 0:00:09]} 3. Nc3 {[%emt 0:00:00]} Bg7 {[%emt 0:00:00]} 4. e4 {[%emt 0:00:10]} d6 {[%emt 0:00:00]} 5. h3 {[%emt 0:00:10]} Nbd7 {[%emt 0:01:46]} 6. Be3 {[%emt 0:00:59]} e5 {[%emt 0:01:04]} 7. d5 {[%emt 0:01:04]} Nc5 {[%emt 0:00:59]} 8. Qc2 {[%emt 0:00:57]} Nh5 {[%emt 0:01:06]} 9. b4 {[%emt 0:04:16]} Nd7 {[%emt 0:00:20]} 10. Be2 {[%emt 0:00:29]} Nf4 {[%emt 0:01:29]} 11. Bf3 {[%emt 0:00:11]} a5 {[%emt 0:00:22]} 12. b5 {[%emt 0:03:50]} Nc5 {[%emt 0:02:02]} 13. Bxc5 {[%emt 0:07:37]} dxc5 {[%emt 0:00:06]} 14. g3 {[%emt 0:00:15]} Nh5 {[%emt 0:00:48]} 15. Bxh5 {[%emt 0:00:05]} gxh5 {[%emt 0:00:08]} 16. Nf3 {[%emt 0:06:50]} O-O {[%emt 0:31:20]} 17. Nh4 {[%emt 0:08:03]} Qg5 {[%emt 0:00:50]} 18. Qc1 {[%emt 0:12:40]} Qf6 {[%emt 0:02:15]} 19. Qe3 {[%emt 0:01:58]} b6 {[%emt 0:00:45]} 20. Rd1 {[%emt 0:01:11]} Rd8 {[%emt 0:04:24]} 21. Qe2 {[%emt 0:06:24]} Qg5 {[%emt 0:01:06]} 22. Rd3 {[%emt 0:06:26]} Rd6 {[%emt 0:05:11]} 23. Qd2 {[%emt 0:01:38]} Qxd2+ {[%emt 0:15:46]} 24. Kxd2 {[%emt 0:00:13]} Rf6 {[%emt 0:00:36]} 25. Ke2 {[%emt 0:00:53]} Bd7 {[%emt 0:01:03]} 26. Rf3 {[%emt 0:02:21]} Re8 {[%emt 0:03:27]} 27. Rxf6 {[%emt 0:06:28]} Bxf6 {[%emt 0:00:01]} 28. Ng2 {[%emt 0:00:08]} Kg7 {[%emt 0:04:00]} 29. h4 {[%emt 0:01:28]} Kg6 {[%emt 0:01:29]} 30. Ne3 {[%emt 0:01:21]} Be7 {[%emt 0:05:06]} 31. f4 {[%emt 0:03:54]} Bg4+ {[%emt 0:06:35]} 32. Kd3 {[%emt 0:07:12]} Bd6 {[%emt 0:01:04]} 33. Rf1 {[%emt 0:01:14]} f6 {[%emt 0:04:34]} 34. Nf5 {[%emt 0:02:54]} exf4 {[%emt 0:01:00]} 35. Nxd6 {[%emt 0:00:34]} cxd6 {[%emt 0:00:14]} 36. gxf4 {[%emt 0:03:29]} f5 {[%emt 0:00:38]} 37. Rg1 {[%emt 0:04:09]} Kf7 {[%emt 0:00:40]} 38. exf5 {[%emt 0:00:33]} Bxf5+ {[%emt 0:00:01]} 39. Kd2 {[%emt 0:00:09]} h6 {[%emt 0:01:50]} 40. Rg3 {[%emt 0:01:39]} Kf6 {[%emt 0:02:29]} 41. Re3 {[%emt 0:01:49]} Rg8 {[%emt 0:00:02]} 42. Na4 {[%emt 0:01:01]} Rb8 {[%emt 0:00:32]} 43. Re1 {[%emt 0:01:09]} Kf7 {[%emt 0:01:00]} 44. Rc1 {[%emt 0:00:42]} Kf6 {[%emt 0:00:17]} 45. Ke3 {[%emt 0:01:11]} Re8+ {[%emt 0:00:33]} 46. Kf2 {[%emt 0:00:47]} Rb8 {[%emt 0:00:22]} 47. Re1 {[%emt 0:00:07]} Kf7 {[%emt 0:00:06]} 48. Re3 {[%emt 0:00:33]} Kf6 {[%emt 0:00:12]} 49. Nc3 {[%emt 0:00:05]} Rg8 {[%emt 0:00:17]} 50. Ne4+ {[%emt 0:00:33]} Bxe4 {[%emt 0:00:09]} 51. Rxe4 {[%emt 0:00:04]} Kf5 {[%emt 0:01:22]} 52. Re6 {[%emt 0:00:44]} Rg6 {[%emt 0:00:02]} 53. Kf3 {[%emt 0:01:10]} Rg4 {[%emt 0:02:29]} 54. Rxd6 {[%emt 0:00:30]} Rxf4+ {[%emt 0:00:02]} 55. Kg3 {[%emt 0:00:26]} Rg4+ {[%emt 0:00:29]} 56. Kf3 {[%emt 0:01:25]} Rf4+ {[%emt 0:00:45]} 57. Ke3 {[%emt 0:00:08]} Rxc4 {[%emt 0:01:10]} 58. Rxh6 {[%emt 0:00:29]} Rxh4 {[%emt 0:01:04]} 59. Rxb6 {[%emt 0:00:29]} Re4+ {[%emt 0:00:32]} 60. Kd3 {[%emt 0:00:48]} Rd4+ {[%emt 0:00:16]} 61. Kc3 {[%emt 0:00:04]} h4 {[%emt 0:01:06]} 62. Rh6 {[%emt 0:00:29]} Kg5 {[%emt 0:00:02]} 63. Rh8 {[%emt 0:00:23]} Rxd5 {[%emt 0:00:31]} 64. b6 {[%emt 0:00:21]} Rd7 {[%emt 0:01:03]} 65. Kc4 {[%emt 0:00:11]} Kg4 {[%emt 0:00:44]} 66. Kxc5 {[%emt 0:00:07]} h3 {[%emt 0:00:30]} 67. a4 {[%emt 0:00:33]} Kg3 {[%emt 0:00:33]} 68. Kc6 {[%emt 0:00:15]} Rd2 {[%emt 0:00:35]} 69. b7 {[%emt 0:00:23]} Rc2+ {[%emt 0:00:02]} 70. Kb6 {[%emt 0:00:55]} Rb2+ {[%emt 0:00:18]} 71. Ka7 {[%emt 0:00:05]} h2 {[%emt 0:00:54]} 72. b8=Q+ {[%emt 0:00:06]} Rxb8 {[%emt 0:00:05]} 73. Kxb8 {[%emt 0:00:06]} Kg2 {[%emt 0:00:05]} 74. Kb7 {[%emt 0:00:07]} h1=Q {[%emt 0:00:06]} 75. Rxh1 {[%emt 0:00:07]} Kxh1 {[%emt 0:00:01]} 76. Kb6 {[%emt 0:00:05]} Kg2 {[%emt 0:00:03]} 77. Kxa5 {[%emt 0:00:06]} Kf3 {[%emt 0:00:02]} 78. Kb6 {[%emt 0:00:07]} Ke4 {[%emt 0:00:05]} 79. a5 {[%emt 0:00:03]} Kd5 {[%emt 0:00:09]} 80. a6 {[%emt 0:00:06]} 1-0

[Event "Chile-ch Absolute 2018-19"]
[Site "Santiago"]
[Date "2019.02.22"]
[Round "3.2"]
[White "Vergara Jofre, Felipe"]
[Black "Henriquez Villagra, Cristobal"]
[Result "0-1"]
[ECO "B04"]
[WhiteElo "2265"]
[BlackElo "2508"]
[Annotator "RC"]
[PlyCount "84"]
[EventDate "2019.02.20"]
[EventType "tourn"]
[EventCountry "CHI"]
[SourceTitle "playchess.com"]
[Source "ChessBase"]
[SourceQuality "1"]
[TimeControl "5400+30"]

1. e4 {[%emt 0:01:06]} g6 {[%emt 0:00:00]} 2. d4 {[%emt 0:00:17]} Bg7 {[%emt 0:00:00]} 3. Bc4 {[%emt 0:03:39]} d6 {[%emt 0:01:49]} 4. Nf3 {[%emt 0:01:52]} Nf6 {[%emt 0:00:26]} 5. Qe2 {[%emt 0:01:42]} c6 {[%emt 0:05:13]} 6. e5 {[%emt 0:03:30]} Nd5 {[%emt 0:04:25]} 7. h3 {[%emt 0:07:40]} O-O {[%emt 0:05:42]} 8. O-O {[%emt 0:00:52]} Nb6 {[%emt 0:08:51]} 9. Bb3 {[%emt 0:07:18]} Na6 {[%emt 0:04:39]} 10. Rd1 {[%emt 0:06:43]} Nc7 {[%emt 0:01:43]} 11. Bg5 {[%emt 0:07:53]} d5 {[%emt 0:10:04]} 12. Nbd2 {[%emt 0:06:03]} h6 {[%emt 0:01:11]} 13. Bh4 {[%emt 0:01:44]} f5 {[%emt 0:01:16]} 14. Bg3 {[%emt 0:08:31]} g5 {[%emt 0:02:56]} 15. a4 {[%emt 0:03:41]} f4 {[%emt 0:01:24]} 16. Bh2 {[%emt 0:00:05]} Bf5 {[%emt 0:00:40]} 17. a5 {[%emt 0:02:23]} Nc8 {[%emt 0:00:21]} 18. Ne1 {[%emt 0:08:46]} e6 {[%emt 0:01:17]} 19. c3 {[%emt 0:02:13]} Ne7 {[%emt 0:01:49]} 20. Bc2 {[%emt 0:00:45]} Bxc2 {[%emt 0:00:27]} 21. Nxc2 {[%emt 0:00:02]} Qe8 {[%emt 0:00:06]} 22. g3 {[%emt 0:07:56]} Qg6 {[%emt 0:04:29]} 23. Nb4 {[%emt 0:02:31]} Qf5 {[%emt 0:04:44]} 24. gxf4 {[%emt 0:06:31]} Qxh3 {[%emt 0:00:55]} 25. fxg5 {[%emt 0:01:25]} Rf5 {[%emt 0:00:39]} 26. Kh1 {[%emt 0:02:28]} Raf8 {[%emt 0:01:11]} 27. Nd3 {[%emt 0:01:05]} hxg5 {[%emt 0:00:05]} 28. Rg1 {[%emt 0:01:15]} c5 {[%emt 0:02:04]} 29. Rg3 {[%emt 0:02:00]} Qh7 {[%emt 0:01:00]} 30. Rag1 {[%emt 0:00:33]} c4 {[%emt 0:00:21]} 31. Rxg5 {[%emt 0:02:13]} Rxg5 {[%emt 0:00:05]} 32. Rxg5 {[%emt 0:00:01]} cxd3 {[%emt 0:00:13]} 33. Qe3 {[%emt 0:01:11]} Rf5 {[%emt 0:00:12]} 34. f4 {[%emt 0:00:33]} Rxg5 {[%emt 0:01:14]} 35. fxg5 {[%emt 0:00:01]} Qf5 {[%emt 0:00:10]} 36. Kg2 {[%emt 0:00:53]} Ng6 {[%emt 0:00:05]} 37. Bg3 {[%emt 0:00:20]} Bf8 {[%emt 0:00:04]} 38. Nf3 {[%emt 0:00:31]} Be7 {[%emt 0:00:22]} 39. Ne1 {[%emt 0:00:44]} Qg4 {[%emt 0:01:45]} 40. Nxd3 {[%emt 0:00:31]} Bxg5 {[%emt 0:00:51]} 41. Qf2 {[%emt 0:00:19]} Ne8 {[%emt 0:00:31]} 42. Nc5 {[%emt 0:00:29]} Ng7 {[%emt 0:00:37]} 0-1

[Event "Chile-ch Absolute 2018-19"]
[Site "Santiago"]
[Date "2019.02.22"]
[Round "3.6"]
[White "Aguirre Contreras, Cristian"]
[Black "Cuevas Araya, Walter"]
[Result "1-0"]
[ECO "D78"]
[WhiteElo "2252"]
[BlackElo "2187"]
[Annotator "NA"]
[PlyCount "71"]
[EventDate "2019.02.20"]
[EventType "tourn"]
[EventCountry "CHI"]
[SourceTitle "playchess.com"]
[Source "ChessBase"]
[SourceQuality "1"]
[TimeControl "5400+30"]

1. Nf3 {[%emt 0:00:00]} d5 {[%emt 0:03:07]} 2. g3 {[%emt 0:00:04]} Nf6 {[%emt 0:01:36]} 3. Bg2 {[%emt 0:00:08]} g6 {[%emt 0:00:23]} 4. O-O {[%emt 0:01:38]} Bg7 {[%emt 0:00:02]} 5. d4 {[%emt 0:02:04]} O-O {[%emt 0:00:47]} 6. b3 {[%emt 0:00:15]} c6 {[%emt 0:03:50]} 7. c4 {[%emt 0:01:06]} e6 {[%emt 0:07:39]} 8. Bb2 {[%emt 0:05:26]} Nbd7 {[%emt 0:05:45]} 9. Qc2 {[%emt 0:09:15]} Ne4 {[%emt 0:00:58]} 10. Nfd2 {[%emt 0:01:15]} f5 {[%emt 0:00:29]} 11. f3 {[%emt 0:10:26]} Nxd2 {[%emt 0:06:55]} 12. Nxd2 {[%emt 0:00:26]} Nf6 {[%emt 0:00:51]} 13. Rae1 {[%emt 0:05:06]} Bd7 {[%emt 0:03:35]} 14. e4 {[%emt 0:01:28]} Rc8 {[%emt 0:05:14]} 15. e5 {[%emt 0:05:04]} Ne8 {[%emt 0:02:15]} 16. f4 {[%emt 0:01:35]} b5 {[%emt 0:03:02]} 17. Ba3 {[%emt 0:01:48]} Rf7 {[%emt 0:00:11]} 18. Bc5 {[%emt 0:02:49]} Qc7 {[%emt 0:05:23]} 19. Rc1 {[%emt 0:01:55]} Qb7 {[%emt 0:00:00]} 20. cxb5 {[%emt 0:05:41]} cxb5 {[%emt 0:00:00]} 21. b4 {[%emt 0:00:31]} Nc7 {[%emt 0:03:49]} 22. Rf3 {[%emt 0:08:38]} Na6 {[%emt 0:00:08]} 23. Rc3 {[%emt 0:00:19]} Nxc5 {[%emt 0:02:52]} 24. dxc5 {[%emt 0:02:07]} Bc6 {[%emt 0:01:11]} 25. Nb3 {[%emt 0:00:08]} Qd7 {[%emt 0:02:16]} 26. Nd4 {[%emt 0:00:22]} Qe8 {[%emt 0:00:15]} 27. Ra3 {[%emt 0:00:34]} g5 {[%emt 0:01:57]} 28. Kh1 {[%emt 0:05:56]} gxf4 {[%emt 0:02:21]} 29. gxf4 {[%emt 0:00:03]} Bh6 {[%emt 0:00:08]} 30. Qf2 {[%emt 0:00:14]} Bf8 {[%emt 0:06:18]} 31. Ra6 {[%emt 0:00:54]} Rg7 {[%emt 0:00:26]} 32. Bf1 {[%emt 0:02:20]} Rcc7 {[%emt 0:03:42]} 33. Rxc6 {[%emt 0:02:08]} Rxc6 {[%emt 0:00:13]} 34. Bxb5 {[%emt 0:00:08]} Rgc7 {[%emt 0:00:23]} 35. Rg1+ {[%emt 0:00:23]} Kh8 {[%emt 0:00:34]} 36. Bxc6 {[%emt 0:01:20]} 1-0

[Event "Chile-ch Absolute 2018-19"]
[Site "Santiago"]
[Date "2019.02.22"]
[Round "4.1"]
[White "Gasic Merino, Franco"]
[Black "Cuevas Araya, Walter"]
[Result "1-0"]
[ECO "B07"]
[WhiteElo "2189"]
[BlackElo "2187"]
[Annotator "NA"]
[PlyCount "85"]
[EventDate "2019.02.20"]
[EventType "tourn"]
[EventCountry "CHI"]
[SourceTitle "playchess.com"]
[Source "ChessBase"]
[SourceQuality "1"]
[TimeControl "5400+30"]

1. d4 {[%emt 0:00:00]} Nf6 {[%emt 0:00:00]} 2. g3 {[%emt 0:00:00]} g6 {[%emt 0:00:30]} 3. Bg2 {[%emt 0:00:00]} Bg7 {[%emt 0:00:13]} 4. e4 {[%emt 0:00:00]} d6 {[%emt 0:00:06]} 5. Ne2 {[%emt 0:00:00]} O-O {[%emt 0:01:24]} 6. O-O {[%emt 0:00:00]} e5 {[%emt 0:00:10]} 7. Nbc3 {[%emt 0:00:00]} c6 {[%emt 0:00:19]} 8. a4 {[%emt 0:00:10]} a5 {[%emt 0:00:42]} 9. h3 {[%emt 0:00:17]} Qc7 {[%emt 0:03:23]} 10. Be3 {[%emt 0:00:22]} b6 {[%emt 0:00:49]} 11. Qd2 {[%emt 0:02:01]} Re8 {[%emt 0:00:04]} 12. Rad1 {[%emt 0:01:49]} Nbd7 {[%emt 0:01:10]} 13. g4 {[%emt 0:06:25]} Bf8 {[%emt 0:22:07]} 14. Ng3 {[%emt 0:01:00]} Ba6 {[%emt 0:00:13]} 15. Rfe1 {[%emt 0:00:14]} Red8 {[%emt 0:03:49]} 16. g5 {[%emt 0:02:37]} Ne8 {[%emt 0:00:05]} 17. f4 {[%emt 0:01:27]} Bg7 {[%emt 0:01:35]} 18. Qf2 {[%emt 0:09:37]} Rab8 {[%emt 0:02:20]} 19. h4 {[%emt 0:04:46]} Nf8 {[%emt 0:10:20]} 20. dxe5 {[%emt 0:03:47]} dxe5 {[%emt 0:00:33]} 21. Rxd8 {[%emt 0:00:18]} Qxd8 {[%emt 0:00:36]} 22. Rd1 {[%emt 0:00:17]} Qc7 {[%emt 0:00:27]} 23. f5 {[%emt 0:00:13]} Nd7 {[%emt 0:02:10]} 24. Bh3 {[%emt 0:01:42]} Bc8 {[%emt 0:13:34]} 25. h5 {[%emt 0:02:21]} Nc5 {[%emt 0:03:08]} 26. b3 {[%emt 0:10:33]} Bf8 {[%emt 0:00:48]} 27. Kh2 {[%emt 0:00:37]} Ng7 {[%emt 0:06:14]} 28. Qf3 {[%emt 0:06:57]} Bd6 {[%emt 0:03:21]} 29. hxg6 {[%emt 0:18:07]} hxg6 {[%emt 0:00:29]} 30. fxg6 {[%emt 0:03:23]} fxg6 {[%emt 0:06:23]} 31. Bxc8 {[%emt 0:00:29]} Rxc8 {[%emt 0:00:11]} 32. Qf6 {[%emt 0:00:27]} Bf8 {[%emt 0:01:05]} 33. Rf1 {[%emt 0:03:04]} Qe7 {[%emt 0:05:57]} 34. Qxg6 {[%emt 0:01:06]} Qe8 {[%emt 0:00:04]} 35. Qf6 {[%emt 0:02:05]} Nd7 {[%emt 0:03:33]} 36. Qf3 {[%emt 0:00:48]} Bb4 {[%emt 0:00:57]} 37. Nce2 {[%emt 0:01:04]} Qg6 {[%emt 0:01:20]} 38. Qg4 {[%emt 0:02:38]} Ne6 {[%emt 0:00:53]} 39. Rf6 {[%emt 0:02:08]} Nxf6 {[%emt 0:00:32]} 40. Qxe6+ {[%emt 0:00:10]} Kh7 {[%emt 0:00:49]} 41. Qh3+ {[%emt 0:01:26]} Kg8 {[%emt 0:02:10]} 42. Qxc8+ {[%emt 0:00:12]} Ne8 {[%emt 0:00:03]} 43. Qf5 {[%emt 0:02:09]} 1-0

[Event "Chile-ch Absolute 2018-19"]
[Site "Santiago"]
[Date "2019.02.22"]
[Round "4.3"]
[White "Lopez Silva, Hugo"]
[Black "Tapia Fuentes, Jaime"]
[Result "1-0"]
[ECO "B33"]
[WhiteElo "2413"]
[BlackElo "2259"]
[Annotator "ChessBase"]
[PlyCount "101"]
[EventDate "2019.02.20"]
[EventType "tourn"]
[EventCountry "CHI"]
[SourceTitle "playchess.com"]
[Source "ChessBase"]
[SourceQuality "1"]
[TimeControl "5400+30"]

1. e4 {[%emt 0:03:50]} c5 {[%emt 0:02:30]} 2. Nf3 {[%emt 0:00:24]} Nc6 {[%emt 0:01:54]} 3. d4 {[%emt 0:00:14]} cxd4 {[%emt 0:00:14]} 4. Nxd4 {[%emt 0:00:03]} Qb6 {[%emt 0:01:21]} 5. Nb3 {[%emt 0:00:03]} Nf6 {[%emt 0:00:39]} 6. Nc3 {[%emt 0:00:04]} e6 {[%emt 0:00:17]} 7. a3 {[%emt 0:00:03]} a6 {[%emt 0:01:19]} 8. Bf4 {[%emt 0:00:17]} Be7 {[%emt 0:02:19]} 9. e5 {[%emt 0:01:06]} Ng8 {[%emt 0:04:28]} 10. Ne4 {[%emt 0:14:48]} f5 {[%emt 0:04:17]} 11. Nd6+ {[%emt 0:09:14]} Bxd6 {[%emt 0:00:42]} 12. Qxd6 {[%emt 0:00:04]} Nge7 {[%emt 0:01:09]} 13. Bg5 {[%emt 0:14:30]} Qd8 {[%emt 0:10:48]} 14. Be2 {[%emt 0:04:49]} O-O {[%emt 0:01:19]} 15. O-O-O {[%emt 0:17:42]} h6 {[%emt 0:00:58]} 16. Bxe7 {[%emt 0:01:19]} Nxe7 {[%emt 0:05:09]} 17. Nc5 {[%emt 0:07:01]} Nd5 {[%emt 0:07:19]} 18. Bf3 {[%emt 0:02:14]} Nc7 {[%emt 0:19:25]} 19. Nxd7 {[%emt 0:09:47]} Bxd7 {[%emt 0:00:15]} 20. Qxd7 {[%emt 0:00:02]} Qg5+ {[%emt 0:00:11]} 21. Qd2 {[%emt 0:02:55]} f4 {[%emt 0:00:07]} 22. Qd6 {[%emt 0:00:34]} Rf7 {[%emt 0:03:15]} 23. h4 {[%emt 0:01:48]} Qf5 {[%emt 0:00:22]} 24. Rhe1 {[%emt 0:00:26]} Nb5 {[%emt 0:02:42]} 25. Qd3 {[%emt 0:00:25]} Qxd3 {[%emt 0:00:37]} 26. Rxd3 {[%emt 0:00:02]} Rc8 {[%emt 0:01:05]} 27. h5 {[%emt 0:06:49]} a5 {[%emt 0:15:48]} 28. a4 {[%emt 0:02:28]} Na7 {[%emt 0:00:45]} 29. Rd6 {[%emt 0:00:04]} Re7 {[%emt 0:00:16]} 30. Bg4 {[%emt 0:01:06]} Kf7 {[%emt 0:05:06]} 31. Re4 {[%emt 0:00:17]} Rc5 {[%emt 0:00:26]} 32. Rxf4+ {[%emt 0:00:13]} Ke8 {[%emt 0:00:08]} 33. Re4 {[%emt 0:00:43]} Nc6 {[%emt 0:00:43]} 34. Rxe6 {[%emt 0:01:02]} Rxe6 {[%emt 0:01:40]} 35. Bxe6 {[%emt 0:00:02]} Nxe5 {[%emt 0:00:46]} 36. f4 {[%emt 0:00:59]} Nd3+ {[%emt 0:03:41]} 37. Kd2 {[%emt 0:00:05]} Nxb2 {[%emt 0:00:20]} 38. g4 {[%emt 0:00:51]} Kd8 {[%emt 0:01:07]} 39. Bb3 {[%emt 0:00:34]} b5 {[%emt 0:01:55]} 40. axb5 {[%emt 0:00:17]} a4 {[%emt 0:00:04]} 41. Bxa4 {[%emt 0:00:42]} Nc4+ {[%emt 0:00:14]} 42. Ke2 {[%emt 0:00:31]} Nb6 {[%emt 0:00:23]} 43. Kd3 {[%emt 0:00:31]} Rd5+ {[%emt 0:01:38]} 44. Kc3 {[%emt 0:00:13]} Rc5+ {[%emt 0:00:30]} 45. Kb4 {[%emt 0:00:46]} Nxa4 {[%emt 0:00:11]} 46. Kxa4 {[%emt 0:00:02]} Rxc2 {[%emt 0:00:01]} 47. b6 {[%emt 0:00:51]} Kc8 {[%emt 0:00:33]} 48. Kb5 {[%emt 0:00:15]} Rb2+ {[%emt 0:00:20]} 49. Kc6 {[%emt 0:00:19]} Rc2+ {[%emt 0:00:06]} 50. Kd6 {[%emt 0:00:11]} Rd2+ {[%emt 0:01:20]} 51. Ke6 {[%emt 0:00:03]} 1-0

[Event "Chile-ch Absolute 2018-19"]
[Site "Santiago"]
[Date "2019.02.22"]
[Round "4.4"]
[White "Salinas Herrera, Pablo"]
[Black "Olivares Olivares, Claudio"]
[Result "1/2-1/2"]
[ECO "B53"]
[WhiteElo "2477"]
[BlackElo "2387"]
[Annotator "ChessBase"]
[PlyCount "89"]
[EventDate "2019.02.20"]
[EventType "tourn"]
[EventCountry "CHI"]
[SourceTitle "playchess.com"]
[Source "ChessBase"]
[SourceQuality "1"]
[TimeControl "5400+30"]

1. e4 {[%emt 0:00:00]} c5 {[%emt 0:00:06]} 2. Nf3 {[%emt 0:00:00]} d6 {[%emt 0:00:33]} 3. d4 {[%emt 0:00:00]} cxd4 {[%emt 0:00:05]} 4. Qxd4 {[%emt 0:00:00]} Nc6 {[%emt 0:00:08]} 5. Qe3 {[%emt 0:00:00]} Nf6 {[%emt 0:02:03]} 6. Be2 {[%emt 0:00:00]} e6 {[%emt 0:01:17]} 7. O-O {[%emt 0:00:15]} Qc7 {[%emt 0:01:37]} 8. c4 {[%emt 0:04:01]} Be7 {[%emt 0:00:09]} 9. h3 {[%emt 0:00:13]} O-O {[%emt 0:00:10]} 10. Nc3 {[%emt 0:00:06]} a6 {[%emt 0:00:05]} 11. Rd1 {[%emt 0:01:25]} b6 {[%emt 0:01:03]} 12. b3 {[%emt 0:01:32]} Bb7 {[%emt 0:03:02]} 13. Bb2 {[%emt 0:06:41]} Nd7 {[%emt 0:00:06]} 14. Rac1 {[%emt 0:02:17]} Nce5 {[%emt 0:00:16]} 15. Nd4 {[%emt 0:00:14]} Ng6 {[%emt 0:01:08]} 16. g3 {[%emt 0:05:43]} Rfe8 {[%emt 0:00:57]} 17. Bf1 {[%emt 0:00:50]} Bf8 {[%emt 0:00:47]} 18. Bg2 {[%emt 0:00:09]} Rac8 {[%emt 0:00:18]} 19. Nde2 {[%emt 0:10:54]} Qb8 {[%emt 0:03:19]} 20. Kh2 {[%emt 0:03:40]} Ba8 {[%emt 0:01:24]} 21. Ba3 {[%emt 0:04:34]} Nc5 {[%emt 0:03:06]} 22. Bb2 {[%emt 0:09:12]} Rcd8 {[%emt 0:03:24]} 23. Qd2 {[%emt 0:05:09]} Ne5 {[%emt 0:02:40]} 24. Qc2 {[%emt 0:00:07]} Rc8 {[%emt 0:06:51]} 25. f4 {[%emt 0:15:11]} Nc6 {[%emt 0:00:13]} 26. a3 {[%emt 0:00:05]} Na5 {[%emt 0:10:27]} 27. b4 {[%emt 0:00:16]} Nxc4 {[%emt 0:00:05]} 28. bxc5 {[%emt 0:00:02]} Ne3 {[%emt 0:00:10]} 29. Qd3 {[%emt 0:00:04]} Nxd1 {[%emt 0:00:09]} 30. Nxd1 {[%emt 0:00:09]} dxc5 {[%emt 0:02:23]} 31. Qxa6 {[%emt 0:00:32]} Red8 {[%emt 0:01:59]} 32. Be5 {[%emt 0:03:19]} Bd6 {[%emt 0:00:46]} 33. Bxd6 {[%emt 0:00:14]} Rxd6 {[%emt 0:01:36]} 34. Ndc3 {[%emt 0:00:03]} Bb7 {[%emt 0:08:13]} 35. Qc4 {[%emt 0:00:07]} Rd2 {[%emt 0:01:32]} 36. Rb1 {[%emt 0:01:49]} Qa7 {[%emt 0:01:01]} 37. Qb3 {[%emt 0:04:59]} Ba6 {[%emt 0:02:56]} 38. Ng1 {[%emt 0:00:35]} Bd3 {[%emt 0:02:38]} 39. Rc1 {[%emt 0:00:04]} c4 {[%emt 0:03:14]} 40. Qb4 {[%emt 0:00:41]} b5 {[%emt 0:00:19]} 41. Nf3 {[%emt 0:00:10]} Rf2 {[%emt 0:01:11]} 42. Nd1 {[%emt 0:02:54]} Ra2 {[%emt 0:04:36]} 43. Nc3 {[%emt 0:00:04]} Rf2 {[%emt 0:00:48]} 44. Nd1 {[%emt 0:05:05]} Ra2 {[%emt 0:00:33]} 45. Nc3 {[%emt 0:00:30]} 1/2-1/2

[Event "Chile-ch Absolute 2018-19"]
[Site "Santiago"]
[Date "2019.02.22"]
[Round "4.6"]
[White "Torres Bravo, Cristobal"]
[Black "Vergara Jofre, Felipe"]
[Result "1/2-1/2"]
[ECO "E11"]
[WhiteElo "2347"]
[BlackElo "2265"]
[Annotator "NA"]
[PlyCount "40"]
[EventDate "2019.02.20"]
[EventType "tourn"]
[EventCountry "CHI"]
[SourceTitle "playchess.com"]
[Source "ChessBase"]
[SourceQuality "1"]
[TimeControl "5400+30"]

1. d4 {[%emt 0:03:12]} Nf6 {[%emt 0:00:00]} 2. c4 {[%emt 0:00:04]} e6 {[%emt 0:00:00]} 3. Nf3 {[%emt 0:00:05]} Bb4+ {[%emt 0:00:00]} 4. Bd2 {[%emt 0:00:11]} Qe7 {[%emt 0:00:00]} 5. g3 {[%emt 0:00:46]} Nc6 {[%emt 0:00:00]} 6. Nc3 {[%emt 0:00:50]} Bxc3 {[%emt 0:01:28]} 7. Bxc3 {[%emt 0:00:06]} Ne4 {[%emt 0:00:04]} 8. Rc1 {[%emt 0:00:26]} d6 {[%emt 0:02:12]} 9. d5 {[%emt 0:00:36]} Nxc3 {[%emt 0:00:05]} 10. Rxc3 {[%emt 0:00:04]} Nd8 {[%emt 0:00:32]} 11. Bg2 {[%emt 0:00:31]} O-O {[%emt 0:10:11]} 12. O-O {[%emt 0:00:44]} Bd7 {[%emt 0:04:03]} 13. Qd2 {[%emt 0:08:03]} a5 {[%emt 0:09:57]} 14. Rd1 {[%emt 0:03:26]} b6 {[%emt 0:08:51]} 15. Re3 {[%emt 0:24:33]} Qf6 {[%emt 0:06:40]} 16. dxe6 {[%emt 0:10:59]} Nxe6 {[%emt 0:02:57]} 17. Ne5 {[%emt 0:06:35]} Rad8 {[%emt 0:00:19]} 18. Nxd7 {[%emt 0:00:22]} Rxd7 {[%emt 0:00:02]} 19. Bh3 {[%emt 0:00:13]} Re7 {[%emt 0:02:10]} 20. Bxe6 {[%emt 0:01:18]} Rxe6 {[%emt 0:02:58]} 1/2-1/2